Cogmind - Beta 11.2 @@@ ROGUE MODE // 2023.01.04 @ 05:52:22 Player: yota99 Result: Destroyed by H-55 Commando with Gauss Rifle Performance ------------- Evolutions (2) 1000 Regions Visited (6) 1200 Robots Destroyed (53) 265 Value Destroyed (1342) 1342 Prototype IDs (2) 40 Alien Tech Used (0) 0 Bonus (0) 0 TOTAL SCORE: 3847 Bonus ------- None Cogmind --------- Core Integrity 0/550 Matter 272/300 Energy 280/280 System Corruption 19% Temperature Cool (0) Movement Treading (720) Ox7 Location -8/Materials Parts ------- > --- POWER (1) -------- Heavy Ion Engine > --- PROPULSION (2) --- Light Treads > --- UTILITY (6) ------ Cargo Storage Unit Hardened Light Armor Plating > --- WEAPON (2) ------- Heavy Assault Rifle Axe > --- INVENTORY (30) --- Light Ion Engine Heavy Ion Engine Nuclear Core Fission Core Fission Core Aluminum Leg Improved Heat Sink Improved Heat Sink Cooling System High-capacity Storage Unit Small Matter Pod (50) Medium Matter Pod (100) Medium Matter Pod (100) Large Matter Pod (150) Trap Scanner Improved Utility Shielding Axe Axe Peak State ------------ > --- POWER ------------ Heavy Ion Engine > --- PROPULSION ------- Carbon-fiber Leg Carbon-fiber Leg > --- UTILITY ---------- Cargo Storage Unit Medium Matter Pod Large Matter Pod Core Shielding High-powered Tractor Beam > --- WEAPON ----------- Improved Grenade Launcher Missile Launcher > --- INVENTORY -------- Light Ion Engine Heavy Ion Engine Heavy Ion Engine Heavy Ion Engine Nuclear Core Fission Core Fission Core Aluminum Leg Aluminum Leg Aluminum Leg Improved Heat Sink Improved Heat Sink Cooling System High-capacity Storage Unit Small Matter Pod Medium Matter Pod Medium Matter Pod Large Matter Pod Trap Scanner Hardened Light Armor Plating Shield Generator Improved EM Shotgun Light EM Pulse Cannon Rocket Launcher Axe Axe Axe Axe [Rating: 28] Favorites ----------- Power Ion Engine Engine Ion Engine Propulsion Aluminum Leg Treads Light Treads Leg Aluminum Leg Utility Cargo Storage Unit Device Heat Sink Storage Cargo Storage Unit Protection Core Shielding Weapon Grenade Launcher Energy Gun Improved EM Shotgun Energy Cannon Light EM Pulse Cannon Ballistic Gun Assault Rifle Launcher Grenade Launcher Slashing Weapon Axe Build | -11 -10 -9 -9 -9 -8 -8 ------- Run | Scr Mat Mat Min Exi Min Mat Slots Evolved 4 | . . 2 . . . 2 Power . | . . . . . . . Propulsion . | . . . . . . . Utility 4 | . . 2 . . . 2 Weapon . | . . . . . . . Parts Attached 49 | 7 4 10 1 . 3 24 Power 6 | 1 . 1 . . 1 3 Engine 6 | 1 . 1 . . 1 3 Core . | . . . . . . . Reactor . | . . . . . . . Propulsion 10 | 2 1 2 . . . 5 Treads 4 | 2 1 . . . . 1 Leg 6 | . . 2 . . . 4 Wheel . | . . . . . . . Hover . | . . . . . . . Flight . | . . . . . . . Utility 13 | 2 2 3 . . 1 5 Device 7 | 1 1 2 . . . 3 Storage 4 | 1 1 . . . 1 1 Processor . | . . . . . . . Hackware . | . . . . . . . Protection 2 | . . 1 . . . 1 Artifact . | . . . . . . . Weapon 20 | 2 1 4 1 . 1 11 Energy Gun 1 | . . . . . . 1 Energy Cannon 1 | . . . . . . 1 Ballistic Gun 7 | 2 1 2 . . . 2 Ballistic Cannon . | . . . . . . . Launcher 8 | . . 2 . . 1 5 Special Weapon . | . . . . . . . Impact Weapon . | . . . . . . . Slashing Weapon 3 | . . . 1 . . 2 Piercing Weapon . | . . . . . . . Special Melee Weapon . | . . . . . . . Unidentified Prototypes 2 | . . . . . . 2 Corrupted Parts 2 | . . . . . . 2 System Corruption 19 | . . . . . . 19 Parts Lost 26 | . 1 7 . . 1 17 Power 3 | . . 1 . . . 2 Propulsion 6 | . . 2 . . . 4 Utility 6 | . 1 1 . . . 4 Weapon 11 | . . 3 . . 1 7 Highest Loss Streak 14 | . 1 6 . . 1 14 To Critical Strikes . | . . . . . . . Average Slot Usage (%) 81 | . 91 64 87 88 88 79 Engine 10 | . 14 11 11 11 11 8 Treads 1 | . 27 1 . . . . Leg 16 | . . 7 22 22 22 13 Device 10 | . 7 11 11 11 5 8 Storage 13 | . 14 11 11 11 16 23 Protection 9 | . . 9 11 11 11 8 Ballistic Gun 2 | . 28 3 . . . . Launcher 9 | . . 8 11 11 11 9 Slashing Weapon 7 | . . . 10 11 11 4 Naked Turns . | . . . . . . . Heaviest Build 167 | 15 148 151 153 153 155 167 Greatest Support 40 | 40 40 40 20 20 20 30 Greatest Overweight (x) 53 | . 3 49 7 7 7 53 Average Overweight (x) 7 | . 1 16 7 7 7 7 Largest Inventory Capacity 30 | 8 30 30 30 30 30 30 Average Capacity 29 | 7 18 30 30 30 30 30 Most Carried 30 | 7 11 18 19 29 30 30 Average Carried 21 | 4 8 10 18 27 28 25 Final Capacity 30 | 8 30 30 30 30 30 30 Final Carried 30 | 5 11 18 19 29 30 18 Class Distribution -------------------- 96% | Hauler-Mutant 3% | Mutant Dominant Class ---------------- Hauler-Mutant | -10/Materials Hauler-Mutant | -9/Materials Hauler-Mutant | -9/Mines Hauler-Mutant | -9/Exiles Hauler-Mutant | -8/Mines Hauler-Mutant | -8/Materials Resources | -11 -10 -9 -9 -9 -8 -8 ----------- Run | Scr Mat Mat Min Exi Min Mat Matter Collected 2190 | 285 225 170 66 550 174 720 Remotely 740 | 73 74 . . . . 593 Salvage Created 1191 | 104 270 162 . . 96 559 Parts 92 | 7 24 8 . . 4 49 Haulers Intercepted 2 | . . . . . . 2 Recyclers Shooed 2 | . . . . . 1 1 Parts Field Recycled . | . . . . . . . Retrieved Matter . | . . . . . . . Parts Self-Destructed . | . . . . . . . Prevented . | . . . . . . . Kills | -11 -10 -9 -9 -9 -8 -8 ------- Run | Scr Mat Mat Min Exi Min Mat Combat Hostiles Destroyed 36 | . 10 5 . . 4 17 Melee 1 | . . . . . . 1 Guns 13 | . 10 2 . . . 1 AOE 21 | . . 3 . . 4 14 Classes Destroyed 12 | 2 2 2 . . 2 4 Worker 4 | . . . . . 2 2 Builder 4 | . . 1 . . . 3 Tunneler 2 | 1 . . . . . 1 Hauler 2 | . . . . . . 2 Recycler 1 | 1 . . . . . . Operator 1 | . . . . . . 1 Watcher 3 | . . . . . . 3 Swarmer 13 | . 5 . . . . 8 Grunt 17 | . 5 4 . . 3 5 Duelist 1 | . . 1 . . . . Sentry 2 | . . . . . . 2 Hunter 3 | . . . . . 1 2 Best Kill Streak 7 | 1 7 2 . . 5 7 Combat Bots Only 7 | . 7 2 . . 3 5 Max Kills in Single Turn 3 | 1 1 1 . . 1 3 Gunslinging . | . . . . . . . Exploded 2 | . . 1 . . 1 2 Melee 1 | . . . . . . 1 Uniques/NPCs Destroyed . | . . . . . . . Combat | -11 -10 -9 -9 -9 -8 -8 -------- Run | Scr Mat Mat Min Exi Min Mat Damage Taken 3713 | . 463 685 . . 316 2249 Core 878 | . 58 199 . . 62 559 Absorbed by Shields 12 | . . . . . . 12 Redirected to Shielding 45 | . . 6 . . 14 25 Core Remaining (%) 70 | 100 76 . . . 34 . Volleys Fired 130 | 5 32 28 . . 18 47 Largest 2 | 1 2 2 . . 1 2 Hottest 72 | 20 40 50 . . 33 72 Shots Fired 183 | 5 64 38 . . 18 58 Gun 115 | 5 64 31 . . . 15 Cannon 9 | . . . . . . 9 Launcher 59 | . . 7 . . 18 34 Special . | . . . . . . . Kinetic 109 | 5 64 31 . . . 9 Thermal . | . . . . . . . Explosive 59 | . . 7 . . 18 34 Electromagnetic 15 | . . . . . . 15 Robot Hit Streak 12 | 1 9 11 . . 3 12 Robot Miss Streak 7 | 1 7 3 . . 3 3 Penetration Max . | . . . . . . . Secondary Targets . | . . . . . . . Shots Hit Robots 110 | 2 40 27 . . 7 34 Core Hits 81 | 2 16 10 . . 10 43 Critical Kills . | . . . . . . . Critical Parts Destroyed . | . . . . . . . Critical Strikes . | . . . . . . . Melee Attacks 1 | . . . . . . 1 Impact . | . . . . . . . Slashing 1 | . . . . . . 1 Piercing . | . . . . . . . Sneak Attacks . | . . . . . . . Combat Hostiles . | . . . . . . . Follow-up Attacks . | . . . . . . . Damage Inflicted 4103 | 40 489 568 . . 724 2282 Guns 888 | 40 489 170 . . . 189 Cannons 185 | . . . . . . 185 Explosions 2989 | . . 398 . . 724 1867 Melee 41 | . . . . . . 41 Ramming . | . . . . . . . Kinetic 763 | 40 489 170 . . . 64 Thermal 134 | . . . . . . 134 Explosive 2855 | . . 398 . . 724 1733 Electromagnetic 310 | . . . . . . 310 Impact . | . . . . . . . Slashing 41 | . . . . . . 41 Piercing . | . . . . . . . Highest Corruption 19 | . 1 . . . . 19 Average Corruption 3 | . 1 . . . . 18 Corruption Purged . | . . . . . . . Corruption Blocked . | . . . . . . . Effects 11 | . 8 . . . . 3 Message Errors 2 | . 2 . . . . . Matter Fused 5 | . 3 . . . . 2 Heat Flow Errors 1 | . . . . . . 1 Parts Rejected 1 | . 1 . . . . . Data Loss (minor) 1 | . 1 . . . . . Data Loss (major) 1 | . 1 . . . . . Overload Shots . | . . . . . . . Overflow Damage 114 | . . . . . 41 73 Projectiles . | . . . . . . . Explosions 114 | . . . . . 41 73 Melee . | . . . . . . . Knockbacks . | . . . . . . . Impact . | . . . . . . . Kinetic . | . . . . . . . Secondary . | . . . . . . . Self-Inflicted Damage 275 | . . 35 . . 68 172 Shots 15 | . . 4 . . 3 8 Rammed 1 | . . 1 . . . . Targets Rammed 1 | . . 1 . . . . Kicked . | . . . . . . . Crushed . | . . . . . . . Highest Temperature 104 | . 2 . . . 18 104 Average Temperature 23 | . 2 . . . 14 24 Received Heat Transfer 1068 | . 165 174 . . 135 594 Siege Activations . | . . . . . . . Robots Corrupted 1 | . . . . . . 1 Combat Hostiles 1 | . . . . . . 1 Parts Fried 2 | . . . . . . 2 Impact Corruptions . | . . . . . . . Robots Melted . | . . . . . . . Combat Hostiles . | . . . . . . . Parts Melted . | . . . . . . . Heat Transferred 100 | . . . . . . 100 Parts Sabotaged . | . . . . . . . Parts Stolen . | . . . . . . . Parts Stripped . | . . . . . . . Power Chain Reactions 2 | . . . . . . 2 Missiles Intercepted . | . . . . . . . Alert | -11 -10 -9 -9 -9 -8 -8 ------- Run | Scr Mat Mat Min Exi Min Mat Peak Influence 374 | 10 274 164 . . 153 374 Initial 59 | . 6 31 . . . 59 Average 106 | 3 182 49 . . 98 225 Maximum Alert Level 1 | . 1 . . . . 1 Low Security (%) 74 | 100 40 100 100 . 100 31 Level 1 25 | . 59 . . . . 68 Level 2 . | . . . . . . . Level 3 . | . . . . . . . Level 4 . | . . . . . . . Level 5 . | . . . . . . . High Security . | . . . . . . . Max Security . | . . . . . . . Squads Dispatched 4 | . 2 1 . . . 1 Investigation 3 | . 1 1 . . . 1 Extermination . | . . . . . . . Reinforcement 1 | . 1 . . . . . Assault . | . . . . . . . Garrison . | . . . . . . . Intercept . | . . . . . . . Searches Triggered . | . . . . . . . Construction Impeded . | . . . . . . . Haulers Reinforced . | . . . . . . . Active Scanning Responses . | . . . . . . . Cargo Convoy Interrupts . | . . . . . . . Stealth | -11 -10 -9 -9 -9 -8 -8 --------- Run | Scr Mat Mat Min Exi Min Mat Distress Signals 2 | . . . . . . 2 Communications Jammed . | . . . . . . . Distress Signals . | . . . . . . . Times Spotted 46 | . 12 7 . . 4 23 Peak Tracking Total 9 | . 8 3 . . 3 9 Tactical Retreats 2 | . 1 1 . . . . Traps | -11 -10 -9 -9 -9 -8 -8 ------- Run | Scr Mat Mat Min Exi Min Mat Traps Triggered . | . . . . . . . Indirectly . | . . . . . . . Trap Hack Attempts . | . . . . . . . Triggered . | . . . . . . . Disarmed . | . . . . . . . Reprogrammed . | . . . . . . . Reused . | . . . . . . . Traps Extracted . | . . . . . . . Installed . | . . . . . . . Triggered . | . . . . . . . Machines | -11 -10 -9 -9 -9 -8 -8 ---------- Run | Scr Mat Mat Min Exi Min Mat Machines Disabled 6 | . 1 . . . . 5 Max in Single Turn 2 | . 1 . . . . 2 Machines Sabotaged . | . . . . . . . Garrisons Compromised . | . . . . . . . Overloaded Fab Kills . | . . . . . . . Hacking | -11 -10 -9 -9 -9 -8 -8 --------- Run | Scr Mat Mat Min Exi Min Mat Machines Accessed 9 | . 1 2 . 4 . 2 Terminals 3 | . 1 2 . . . . Fabricators . | . . . . . . . Repair Stations . | . . . . . . . Recycling Units 1 | . . . . . . 1 Scanalyzers 1 | . . . . . . 1 Garrison Access . | . . . . . . . Total Hacks 59 | . 2 3 . 49 . 5 Successful 54 | . . 1 . 49 . 4 Failed 5 | . 2 2 . . . 1 Catastrophic 1 | . . . . . . 1 Database Lockouts . | . . . . . . . Manual 10 | . 2 2 . 2 . 4 Terminals 5 | . 2 3 . . . . Fabricators . | . . . . . . . Repair Stations . | . . . . . . . Recycling Units 3 | . . . . . . 3 Scanalyzers 2 | . . . . . . 2 Garrison Access . | . . . . . . . Terminal Hacks 50 | . . 1 . 49 . . Record 49 | . . . . 49 . . Alert Level 1 | . . 1 . . . . Fabricator Hacks . | . . . . . . . Repair Station Hacks . | . . . . . . . Recycling Unit Hacks . | . . . . . . . Scanalyzer 2 | . . . . . . 2 Insert Component 1 | . . . . . . 1 Analyze 1 | . . . . . . 1 Garrison Access Hacks . | . . . . . . . Unauthorized Hacks 2 | . . . . . . 2 Terminals . | . . . . . . . Fabricators . | . . . . . . . Repair Stations . | . . . . . . . Recycling Units 2 | . . . . . . 2 Reject 1 | . . . . . . 1 Mask 1 | . . . . . . 1 Scanalyzers . | . . . . . . . Garrison Access . | . . . . . . . Data Cores Recovered . | . . . . . . . Used . | . . . . . . . Hacking Detections 4 | . 1 2 . . . 1 Full Trace Events 3 | . 1 1 . . . 1 Feedback Events 1 | . 1 . . . . . Corruption 1 | . 1 . . . . . Feedback Blocked . | . . . . . . . Robot Schematics Acquired . | . . . . . . . Robots Built . | . . . . . . . Authchips . | . . . . . . . Time . | . . . . . . . Total Robot Build Rating . | . . . . . . . Part Schematics Acquired 1 | . . . . . . 1 Parts Built . | . . . . . . . Authchips . | . . . . . . . Time . | . . . . . . . Total Part Build Rating . | . . . . . . . Parts Repaired . | . . . . . . . Time . | . . . . . . . Parts Recycled . | . . . . . . . Recycled Matter . | . . . . . . . Retrieved Matter . | . . . . . . . Retrieved Components . | . . . . . . . Parts Scanalyzed 1 | . . . . . . 1 Part Schematics Acquired 1 | . . . . . . 1 Parts Damaged . | . . . . . . . Bothacking | -11 -10 -9 -9 -9 -8 -8 ------------ Run | Scr Mat Mat Min Exi Min Mat Used RIF Installer . | . . . . . . . Robots Hacked . | . . . . . . . Non-combat . | . . . . . . . Combat . | . . . . . . . Robot Hacks Applied . | . . . . . . . Relay Couplers Released . | . . . . . . . Fabnet Peak Effective % . | . . . . . . . Robots Rewired . | . . . . . . . Allies Hacked . | . . . . . . . Hacks Repelled . | . . . . . . . Allies | -11 -10 -9 -9 -9 -8 -8 -------- Run | Scr Mat Mat Min Exi Min Mat Total Allies . | . . . . . . . Largest Group . | . . . . . . . Highest-Rated Group . | . . . . . . . Highest-Rated Ally . | . . . . . . . Total Orders . | . . . . . . . Ally Attacks . | . . . . . . . Total Damage . | . . . . . . . Kills . | . . . . . . . Allies Corrupted . | . . . . . . . Allies Melted . | . . . . . . . Intel | -11 -10 -9 -9 -9 -8 -8 ------- Run | Scr Mat Mat Min Exi Min Mat Robot Analysis Total . | . . . . . . . Derelict Logs Recovered 1 | . . . 1 . . . Drone Launches . | . . . . . . . Drone Recoveries . | . . . . . . . Exploration | -11 -10 -9 -9 -9 -8 -8 ------------- Run | Scr Mat Mat Min Exi Min Mat Turns Passed 8517 | 97 414 1748 686 4094 208 1270 Spaces Moved 1302 | 51 106 157 112 670 28 178 Core 60 | 14 . 39 . . . 7 Treads 176 | 37 106 28 . . . 5 Legs 1066 | . . 90 112 670 28 166 Wheels . | . . . . . . . Hover . | . . . . . . . Flight . | . . . . . . . Fastest Speed 50 | 50 160 400 610 610 610 470 Average Speed 615 | 129 266 1041 610 610 610 609 Slowest Speed 2700 | 160 400 2500 610 610 610 2700 Overloaded Moves . | . . . . . . . Propulsion Burnouts . | . . . . . . . Robots Hopped . | . . . . . . . Cave-ins Triggered . | . . . . . . . Exploration Rate (%) 30 | 4 23 20 31 91 15 32 Regions Visited 6 Branch Regions 3 Pre-discovered Areas 2 | . . . 1 1 . . Known Exits Taken . | . . . . . . . Unknown Exits Taken 6 | 1 1 1 1 1 1 . Scrap Searched 2 | . . . 2 . . . Spaces Dug . | . . . . . . . Terrain Destroyed 415 | . . 59 . . 90 266 Melee . | . . . . . . . Projectile . | . . . . . . . AOE 415 | . . 59 . . 90 266 Terrain Rammed . | . . . . . . . Walls Destroyed . | . . . . . . . Machines Disabled . | . . . . . . . Actions | -11 -10 -9 -9 -9 -8 -8 --------- Run | Scr Mat Mat Min Exi Min Mat Total 1635 | 77 179 217 119 682 53 308 Wait 59 | 1 18 7 5 . . 28 Move 1296 | 50 105 156 111 669 27 178 Hop . | . . . . . . . Pick Up 74 | 13 15 15 2 10 3 16 Fast Attach . | . . . . . . . Attach 39 | 7 4 8 1 . 2 17 Detach 2 | . . . . . 1 1 Swap 10 | . . 2 . . 1 7 Drop 20 | 1 5 . . . 1 13 Fire 130 | 5 32 28 . . 18 47 Melee 1 | . . . . . . 1 Ram 1 | . . 1 . . . . Kick . | . . . . . . . Crush . | . . . . . . . Escape Stasis . | . . . . . . . Rewire 3 | . . . . 3 . . Trap . | . . . . . . . Miscellaneous . | . . . . . . . Route ------- -11/Scrapyard -10/Materials -9/Materials -9/Mines -9/Exiles -8/Mines -8/Materials History --------- Turn | Location | Event 8 | -11/Scrapyard | Discovered new exit (range 14) 98 | -11/Scrapyard | Entered Materials 283 | -10/Materials | Destroyed 7 combat bots 302 | -10/Materials | Build established: Mutant 480 | -10/Materials | Discovered new exit (range 5) 512 | -10/Materials | Entered another Materials area 512 | -9/Materials | Evolved 2 slots: Utility x2 604 | -9/Materials | Build established: Hauler-Mutant 696 | -9/Materials | Lost 6 parts (1p2n1u2w) 2075 | -9/Materials | Discovered new exit (range 8) 2260 | -9/Materials | Entered Mines 2373 | -9/Mines | Received a Rocket Launcher from a helpful Derelict 2872 | -9/Mines | Learned location of Storage (-7) 2909 | -9/Mines | Deemed a non-threat by the Exiles lab entrance 2915 | -9/Mines | Discovered new exit (range 5) 2946 | -9/Mines | Entered Exiles 3120 | -9/Exiles | Met 8R-AWN 3230 | -9/Exiles | Met EX-HEX 3797 | -9/Exiles | Met EX-DEC 4127 | -9/Exiles | Learned location of Zion (-6) 4563 | -9/Exiles | Discovered new exit (range 14) 5064 | -9/Exiles | Visited The Gauntlet 6028 | -9/Exiles | Met EX-BIN 7040 | -9/Exiles | Entered Mines 7086 | -8/Mines | Core integrity fell below 50% 7091 | -8/Mines | Discovered new exit (range 13) 7248 | -8/Mines | Entered Materials 7248 | -8/Materials | Evolved 2 slots: Utility x2 8256 | -8/Materials | Core integrity fell below 50% 8293 | -8/Materials | Lost 14 parts (2p4n3u5w) 8459 | -8/Materials | Core integrity fell below 20% 8464 | -8/Materials | System corruption reached 10% 8518 | -8/Materials | Destroyed by H-55 Commando with Gauss Rifle Last Messages --------------- 08374_ U-05 Engineer builds a Wall. 08379_ Acquired Corrupted Lgt. Treads. 08407_ Acquired Corrupted Hvy. Assault Rifle. 08446_ Penetrated by Slug. 08455_ Lgt. EM Pulse Cannon destroyed. 08462_ Integrated Corrupted Hvy. Assault Rifle (+9). 08463_ Integrated Corrupted Lgt. Treads (+10). 08464_ Acquired 20 matter. 08477_ System corrupted: Heat flow error (+124). 08490_ Slug penetrates Wall. 08491_ R-06 Scavenger collects Med. Matter Pod. 08493_ Slug penetrates Wall. 08496_ Shield Generator destroyed. 08497_ System corrupted: Matter fused (-10). 08500_ Slug penetrates Wall. 08503_ Wall collapses. 08503_ Penetrated by Slug. 08508_ U-05 Engineer builds a Wall. 08512_ Penetrated by Slug. 08515_ System corrupted: Matter fused (-6). Map ----- +----------------------------------------------------+ | ???????# # ## # # [[ #??#???? | | ???????# # ! [ # # # +#####??????? | | ???????# ?+ # " " # ###### #??????????? | | ???????# ??#""" # " " # """ #????# #??????????? | | ???????#???#""" # """ # """ #????# #???###?#??? | | ???????????#""" # # """ #????# #?? ?=???? | | ???????????? !######## ###### #?? ???? | | ??????????????#####??????# """ ##== #?? ???? | | ?????????????????????????# """ ##== #?? ???? | | ?????????????????????????# ""? ##!! #? ????? | | ?????????????????????????# ?? ?#!! #? """?????? | | ?????????????????????????? ?? ?#== #? ""??????? | | ??????????????????????????#####?#== ## "???????? | | ????????????????########+####T####### ######+##### | | ???????????????? ^ ^ ^^ | | ???????????????? ^ ^ | | ????????????????? ^ = | | ??????????????????????# ######## #### | | ??????????????????????# ## # #?? #??? | | ????????????????????### # #??? #??? | | ????????????????????### #######????#??? | | ????????????????????# #[ %!% [ [ #?????????????? | | ??????????????######### #"" !# #?????????????? | | ??????????????+ #*# #????????????? | | ????????????????########h####### ##????????????? | | ????????????????????# =@ ## #?????????????? | | ????????????????????# ur + #?????????????? | | ????????????????????# ## #?????????????? | | ????????????????????# ## #?????????????? | | ????????????????????# ## #?????????????? | | ????????????????????# ## #?????????????? | | ????????????????????# #? #?????????????? | | ????????????????????# #? ?????????????? | | ????????????????????###########?? ???????????????? | | ?????????????????????????????????????????????????? | | ?????????????????????????????????????????????????? | | ?????????????????????????????????????????????????? | | ?????????????????????????????????????????????????? | | ?????????????????????????????????????????????????? | | ?????????????????????????????????????????????????? | | ?????????????????????????????????????????????????? | | ?????????????????????????????????????????????????? | | ?????????????????????????????????????????????????? | | ?????????????????????????????????????????????????? | | ?????????????????????????????????????????????????? | | ?????????????????????????????????????????????????? | | ?????????????????????????????????????????????????? | | ?????????????????????????????????????????????????? | | ?????????????????????????????????????????????????? | | ?????????????????????????????????????????????????? | +----------------------------------------------------+ Best States ------------- Heat Dissipation 38 Energy Generation 14 Energy Capacity 280 Matter Stores 550 Matter Capacity 550 Sight Range 16 Terrain Scan Range 16 Terrain Scan Density 10 Armor Coverage 150 Core Shielding 20 Evasion (%) 50 Recoil Reduction 2 Item Schematics ----------------- Rocket Launcher | -8/Materials | Scanalyzed Robot Schematics ------------------ None Fabricated ------------ Nothing Alien Tech Used ----------------- None Achievements -------------- Packrat Tank True Hacker Challenges ------------ None Game ------ Seed QuantumBombardmentNanosword Manual? 0 Play Time 00:31:42 Cumulative 10.5 hours Start 2023.01.04 @ 05:15:24 End 2023.01.04 @ 05:52:22 Sessions 1 Manual Loads 0 Difficulty Rogue Special Mode None Game No. 24 Rogue 24 Adventurer 0 Explorer 0 Win Type - Total 0 Types 0/0/0/0/0/0/0/0/0 Lore% 16 Gallery% 20 Achievement% 17 Wizard Run 0 Options --------- ASCII 0 Keyboard 0 Movement Numpad Keybinds 0 Fullscreen 2 Font 24/Terminus Map View 76x50 Tactical HUD 1 Map Filters NONE Filters NONE Steam 1 RUN: 6488a1dc-9110-4ec0-9629-454be75404a8